bitfinex/quotes_SOLUSD_20260214
["timestamp","ask_amount","ask_price","bid_price","bid_amount"]
[1771087285191,50.22,87.738,87.719,1.61553542]
[1771087285389,50.26,87.739,87.721,1.61553542]
[1771087285568,11.39484269,87.759,87.731,1.61553542]
[1771087285569,50.26,87.747,87.731,1.61553542]
[1771087291596,28.48386104,87.769,87.741,1.61553542]
[1771087291778,11.39237622,87.778,87.741,1.61553542]
[1771087292097,50.32,87.777,87.741,1.61553542]
[1771087293093,0.04412574,87.769,87.73,2.91118938]
[1771087293297,0.04565043,87.749,87.713,1.61553542]
[1771087293601,2.91118938,87.75,87.713,1.61553542]
[1771087293602,11.39744013,87.739,87.713,1.61553542]
[1771087294397,0.04715761,87.738,87.708,11.40137746]
[1771087295391,50.36864747,87.737,87.706,1.61553542]
[1771087295582,7.28257664,87.72,87.691,1.61553542]
[1771087295898,50.36864747,87.719,87.691,1.61553542]
[1771087296097,7.28257664,87.71,87.691,1.61553542]
[1771087296813,0.04864747,87.718,87.691,1.61553542]
[1771087296981,7.28257664,87.71,87.691,1.61553542]
[1771087297182,0.05012022,87.717,87.684,1.61553542]
[1771087297397,50.34,87.716,87.684,1.61553542]
[1771087298503,0.05301518,87.748,87.684,1.61553542]
[1771087298811,39.88649442,87.749,87.691,1.61553542]
[1771087298812,0.05301518,87.729,87.691,1.61553542]
[1771087299188,11.40133851,87.709,87.683,1.61553542]
[1771087299494,50.34,87.708,87.683,1.61553542]
[1771087301307,11.4015985,87.707,87.683,1.61553542]
[1771087303609,0.06263663,87.699,87.68,0.2]
[1771087303799,7.28257664,87.69,87.668,1.63051857]
[1771087304285,50.4,87.698,87.668,1.63051857]
[1771087304486,11.4015985,87.707,87.671,1.63051857]
[1771087304487,50.4,87.697,87.671,1.63051857]
[1771087305502,11.4015985,87.707,87.671,1.63051857]
[1771087305687,50.42,87.706,87.673,1.63051857]
[1771087308606,0.06904802,87.729,87.675,1.63051857]
[1771087308805,11.39830767,87.733,87.701,1.63051857]
[1771087308987,50.44,87.732,87.701,1.63051857]
[1771087310210,11.39847944,87.731,87.703,1.63051857]
[1771087311510,11.39847944,87.731,87.705,1.63051857]
[1771087313590,1.50999006,87.719,87.667,46.94]
[1771087313795,1.50999006,87.709,87.661,11.40758147]
[1771087315412,1.50999006,87.739,87.7,7.28257664]
[1771087315603,1.50999006,87.737,87.701,1.63051857]
[1771087315805,50.58,87.738,87.701,1.63051857]
[1771087316113,1.50999006,87.737,87.701,1.63051857]
[1771087316314,1.50999006,87.729,87.693,1.63051857]
[1771087316518,1.50999006,87.719,87.681,1.63051857]
[1771087316719,1.50999006,87.709,87.681,1.63051857]
[1771087317106,1.50999006,87.707,87.681,1.63051857]
[1771087317312,11.4017285,87.706,87.681,1.63051857]
[1771087317700,12.91171856,87.706,87.681,1.63051857]
[1771087317899,12.91171856,87.706,87.681,13.03549471]
[1771087318203,1.50999006,87.705,87.671,1.63051857]
[1771087318409,1.50999006,87.699,87.673,11.4059084]
[1771087320498,1.50999006,87.699,87.673,13.03642697]
[1771087320701,11.40230637,87.702,87.674,1.63051857]
[1771087321621,1.50999006,87.701,87.674,1.63051857]
[1771087323618,11.40250855,87.7,87.674,1.63051857]
[1771087324427,11.40199848,87.704,87.676,1.63051857]
[1771087326517,12.91198854,87.704,87.676,1.63051857]
[1771087326726,1.50999006,87.699,87.669,1.63051857]
[1771087327627,5.36086188,87.73,87.66,0.2]
[1771087327628,1.50999006,87.738,87.691,1.63051857]
[1771087327931,41.98,87.753,87.721,1.63051857]
[1771087328108,7.28864169,87.75,87.721,1.63051857]
[1771087328314,1.50999006,87.749,87.713,1.63051857]
[1771087329125,50.7,87.75,87.713,1.63051857]
[1771087329322,0.81300002,87.767,87.731,1.63051857]
[1771087329323,11.39431364,87.764,87.731,1.63051857]
[1771087330614,11.39431364,87.764,87.733,1.63051857]
[1771087333311,1.57531988,87.768,87.733,1.63051857]
[1771087333510,1.57531988,87.768,87.726,11.39909073]
[1771087333710,1.57531988,87.759,87.726,11.39909073]
[1771087333922,39.87740545,87.769,87.716,1.5194983]
[1771087333923,1.57531988,87.749,87.716,1.5194983]
[1771087334231,1.57531988,87.747,87.716,1.5194983]
[1771087336331,1.55250002,87.745,87.707,1.5194983]
[1771087336511,1.55250002,87.745,87.689,28.50975349]
[1771087336512,1.55250002,87.729,87.689,1.5194983]
[1771087336712,1.55250002,87.719,87.689,1.5194983]
[1771087336915,50.68,87.718,87.682,12.92427745]
[1771087337225,1.55250002,87.717,87.683,1.5194983]
[1771087337536,1.54506746,87.715,87.683,1.5194983]
[1771087338033,11.4006886,87.714,87.683,1.5194983]
[1771087338248,11.4006886,87.714,87.684,11.4045892]
[1771087338446,11.4006886,87.714,87.685,1.5194983]
[1771087339522,11.4006886,87.714,87.679,33.15686943]
[1771087339523,1.53045748,87.709,87.679,33.15686943]
[1771087340027,11.4014685,87.708,87.679,33.15686943]
[1771087340238,1.53045748,87.707,87.679,33.15686943]
[1771087340438,50.7,87.706,87.679,33.15686943]
[1771087340637,1.5232781,87.705,87.679,33.15686943]
[1771087340828,1.5232781,87.704,87.679,33.15686943]
[1771087341844,11.40211851,87.703,87.679,33.15686943]
[1771087342353,1.50916579,87.701,87.679,33.15686943]
[1771087343452,1.50223097,87.699,87.679,33.15686943]
[1771087344053,11.40276859,87.698,87.679,33.15686943]
[1771087344232,7.28864169,87.69,87.679,33.15686943]
[1771087344544,11.40276859,87.698,87.679,33.15686943]
[1771087345150,12.89814439,87.698,87.679,33.15686943]
[1771087345531,11.40276859,87.698,87.68,1.5194983]
[1771087347755,11.40276859,87.698,87.679,33.15686943]
[1771087349347,11.40276859,87.698,87.679,34.67636773]
[1771087349548,11.4017285,87.706,87.68,1.5194983]
[1771087349851,50.84,87.705,87.68,1.5194983]
[1771087352062,1.44954437,87.703,87.679,33.15686943]
[1771087352442,50.92,87.702,87.679,33.15686943]
[1771087353063,11.40237853,87.701,87.679,34.67636773]
[1771087354079,11.40079274,87.714,87.68,7.28864169]
[1771087354258,11.40079274,87.714,87.681,1.5194983]
[1771087356454,11.40079274,87.714,87.682,11.40484934]
[1771087356654,11.40079274,87.714,87.683,1.5194983]
[1771087356877,12.81979674,87.714,87.683,1.5194983]
[1771087357078,1.419004,87.713,87.683,1.5194983]
[1771087357374,1.419004,87.709,87.679,33.15686943]
[1771087357879,1.41310478,87.699,87.679,33.15686943]
[1771087358056,51.0,87.698,87.679,33.15686943]
[1771087359177,11.40289861,87.697,87.679,33.15686943]
[1771087361474,11.40016872,87.718,87.681,1.45505247]
[1771087361659,51.08,87.713,87.681,1.45505247]
[1771087361861,1.3846096,87.712,87.681,1.45505247]
[1771087362175,7.28864169,87.71,87.681,1.45505247]
[1771087362989,1.37366448,87.709,87.681,1.45505247]
[1771087364465,12.77503441,87.709,87.682,11.40484934]
[1771087364657,12.77503441,87.709,87.682,12.87186367]
[1771087364854,12.77503441,87.709,87.683,1.46701433]
[1771087365165,11.40136993,87.709,87.683,1.46701433]
[1771087365351,51.12,87.708,87.683,1.46701433]
[1771087365764,1.35771373,87.706,87.683,1.46701433]
[1771087368076,12.74898141,87.707,87.683,1.46701433]
[1771087370766,1.33232742,87.706,87.683,1.46701433]
[1771087374583,11.4018585,87.705,87.683,1.46701433]
[1771087375586,2.91468371,87.7,87.679,33.15686943]
[1771087375887,1.30836592,87.699,87.679,33.15686943]
[1771087378093,12.71111589,87.699,87.679,34.62388376]
[1771087378390,11.40274997,87.699,87.68,1.46701433]
[1771087380877,29.78632198,87.718,87.681,1.46701433]
[1771087381078,51.28,87.717,87.681,1.46701433]
[1771087381606,79.77730227,87.728,87.681,1.46701433]
[1771087381796,79.77730227,87.728,87.683,1.46701433]
[1771087381983,2.91498596,87.73,87.691,1.46701433]
[1771087382188,11.39808739,87.735,87.701,1.46701433]
[1771087382383,11.39653089,87.746,87.703,1.46701433]
[1771087382705,11.39653089,87.746,87.702,47.42]
[1771087382706,11.3959344,87.751,87.711,1.46701433]
[1771087382911,11.3959344,87.751,87.702,47.42]
[1771087382912,1.27706214,87.777,87.731,1.46701433]
[1771087383083,11.39308642,87.773,87.741,1.46701433]
[1771087383282,11.39094875,87.789,87.751,1.46701433]
[1771087383802,0.1,87.79,87.761,1.46701433]
[1771087384303,11.49088063,87.79,87.761,1.46701433]
[1771087384891,0.1,87.79,87.762,11.39445318]
[1771087385094,0.1,87.79,87.763,1.46701433]
[1771087385890,0.1,87.79,87.762,11.39445318]
[1771087385891,0.1,87.8,87.771,1.46701433]
[1771087387011,0.1,87.8,87.773,1.46701433]
[1771087388788,0.1,87.8,87.775,1.46701433]
[1771087390711,1.34425289,87.789,87.762,47.38]
[1771087390914,1.34425289,87.779,87.762,47.38]
[1771087391115,1.34425289,87.779,87.754,11.39541806]
[1771087391496,1.34425289,87.779,87.75,1.46701433]
[1771087392799,1.34425289,87.779,87.751,11.39588152]
[1771087393199,12.73661792,87.779,87.751,11.39588152]
[1771087393398,1.32631783,87.778,87.751,11.39588152]
[1771087393599,1.32631783,87.778,87.751,12.72757184]
[1771087394003,1.32631783,87.778,87.752,1.33169032]
[1771087394713,2.91498596,87.78,87.754,1.33169032]
[1771087394916,11.39160374,87.784,87.754,1.33169032]
[1771087396320,1.31340007,87.783,87.754,1.33169032]
[1771087396811,1.31340007,87.781,87.754,1.33169032]
[1771087397016,4.22838603,87.78,87.754,1.33169032]
[1771087398016,11.39224643,87.779,87.754,1.33169032]
[1771087398919,1.30503363,87.778,87.754,1.33169032]
[1771087399118,1.30503363,87.778,87.747,1.33169032]
[1771087399704,11.39224643,87.779,87.728,61.24095409]
[1771087399705,1.30092234,87.769,87.739,1.33169032]
[1771087400103,1.30092234,87.767,87.739,1.33169032]
[1771087400604,1.30092234,87.767,87.74,11.39731023]
[1771087400806,1.30092234,87.767,87.741,1.33169032]
[1771087401321,11.39307191,87.773,87.741,1.33169032]
[1771087402724,11.39307191,87.773,87.743,1.33169032]
[1771087404003,51.2,87.784,87.751,1.33169032]
[1771087404210,1.28494402,87.788,87.751,1.33169032]
[1771087404522,1.28106348,87.779,87.751,1.33169032]
[1771087405732,11.39237622,87.778,87.753,1.33169032]
[1771087406533,11.38965136,87.799,87.761,1.33169032]
[1771087407619,1.26968725,87.803,87.771,1.33169032]
[1771087407935,11.38965136,87.799,87.771,1.33169032]
[1771087409012,11.38847939,87.809,87.771,1.33169032]
[1771087410038,11.38847939,87.809,87.773,1.33169032]
[1771087410620,1.25869854,87.804,87.773,1.33169032]
[1771087412440,1.25869854,87.804,87.775,1.33169032]
[1771087413839,1.25869854,87.804,87.777,1.33169032]
[1771087414724,11.38731627,87.818,87.781,1.33169032]
[1771087414928,11.38655679,87.823,87.791,1.33169032]
[1771087415441,1.24462697,87.825,87.791,1.33169032]
[1771087415740,11.48572664,87.83,87.801,1.33169032]
[1771087415943,11.48572664,87.83,87.792,11.3905595]
[1771087415944,0.1,87.83,87.811,1.33169032]
[1771087417070,0.1,87.83,87.792,11.3905595]
[1771087417071,0.1,87.84,87.813,1.33169032]
[1771087417515,0.1,87.84,87.821,1.33169032]
[1771087418636,0.1,87.84,87.813,1.33169032]
[1771087418856,1.32756105,87.829,87.796,60.16161283]
[1771087419142,1.32756105,87.829,87.799,1.33169032]
[1771087419446,12.71336925,87.829,87.799,1.33169032]
[1771087419746,0.1,87.84,87.801,1.33169032]
[1771087419929,0.1,87.84,87.811,1.33169032]
[1771087420129,11.48435839,87.84,87.811,1.33169032]
[1771087420436,0.1,87.84,87.82,2.91498596]
[1771087420642,0.1,87.84,87.821,1.33169032]
[1771087421237,0.1,87.84,87.822,1.3142896]
[1771087421942,1.31825974,87.839,87.805,47.44]
[1771087422133,1.31825974,87.839,87.806,11.38874336]
[1771087423250,1.31825974,87.839,87.809,1.24828318]
[1771087423422,1.30385538,87.876,87.821,1.24828318]
[1771087423624,1.30385538,87.876,87.808,11.38848396]
[1771087423625,1.30385538,87.876,87.85,2.91498596]
[1771087424023,1.30385538,87.876,87.848,1.24828318]
[1771087424430,0.1,87.89,87.852,1.24828318]
[1771087424626,0.1,87.89,87.861,1.24828318]
[1771087425333,0.1,87.89,87.828,15.06222253]
[1771087425334,11.37598796,87.905,87.872,1.24828318]
[1771087425538,12.67984334,87.905,87.872,1.24828318]
[1771087425849,1.30385538,87.904,87.872,1.24828318]
[1771087427748,12.68003139,87.903,87.872,1.24828318]
[1771087428127,12.68003139,87.903,87.87,2.91498596]
[1771087428128,12.68003139,87.903,87.874,1.24828318]
[1771087428356,11.37544282,87.909,87.881,1.24828318]
[1771087428657,11.37476699,87.914,87.881,1.24828318]
[1771087428858,12.67862237,87.914,87.881,1.24828318]
[1771087429042,1.30385538,87.933,87.901,1.24828318]
[1771087429241,1.30385538,87.962,87.921,1.24828318]
[1771087429442,1.30385538,87.979,87.941,1.24828318]
[1771087429668,1.30385538,87.991,87.951,1.24828318]
[1771087429959,5.93903234,88.045,87.93,23.96]
[1771087429960,1.30385538,87.969,87.93,23.96]
[1771087430137,1.30385538,87.959,87.93,23.96]
[1771087430340,1.30385538,87.969,87.922,1.24828318]
[1771087431261,1.30385538,87.959,87.915,11.37452077]
[1771087431469,7.24432959,87.95,87.916,1.24828318]
[1771087431665,1.30385538,87.948,87.901,1.24828318]
[1771087431869,1.30385538,87.948,87.902,1.24828318]
[1771087432244,1.30385538,87.939,87.902,1.24828318]
[1771087432656,39.79579073,87.949,87.911,1.24828318]
[1771087432969,7.24432959,87.96,87.921,1.24828318]
[1771087432970,1.30385538,87.959,87.921,1.24828318]
[1771087433549,1.30385538,87.957,87.921,1.24828318]
[1771087434252,1.30385538,87.992,87.951,1.24828318]
[1771087434451,1.30385538,87.992,87.961,1.24828318]
[1771087435157,11.5,88.0,87.97,7.24432959]
[1771087435467,1.30385538,87.992,87.96,7.24432959]
[1771087435765,1.30385538,87.99,87.96,7.24432959]
[1771087435947,1.30385538,87.989,87.943,1.24828318]
[1771087436151,1.30385538,87.989,87.95,7.24432959]
[1771087436351,7.24432959,87.98,87.94,7.24432959]
[1771087436557,1.30385538,87.969,87.93,7.24432959]
[1771087437466,1.30385538,87.959,87.924,12.62172811]
[1771087437767,7.24432959,87.96,87.92,7.24432959]
[1771087437768,1.30385538,87.957,87.92,7.24432959]
[1771087437946,1.30385538,87.957,87.93,7.24432959]
[1771087438148,1.30385538,87.967,87.94,7.24432959]
[1771087438449,1.30385538,87.977,87.94,8.49261277]
[1771087439587,11.36673638,87.976,87.951,1.24828318]
[1771087439753,1.30385538,87.975,87.937,1.24828318]
[1771087440062,1.30385538,87.975,87.95,7.24432959]
[1771087440471,11.36673638,87.976,87.95,7.24432959]
[1771087440651,11.36583203,87.983,87.95,8.49261277]
[1771087440848,1.30385538,87.979,87.94,7.24235053]
[1771087441059,1.30385538,87.969,87.93,7.24235053]
[1771087441258,1.30385538,87.969,87.928,11.37294149]
[1771087441466,1.30385538,87.967,87.93,7.24235053]
[1771087442065,1.30385538,87.939,87.89,7.24235053]
[1771087442372,1.30385538,87.938,87.89,7.24235053]
[1771087443375,1.30385538,87.938,87.9,7.24235053]
[1771087443677,1.30385538,87.929,87.89,7.24235053]
[1771087445581,1.30385538,87.926,87.89,7.24235053]
[1771087445868,1.30385538,87.934,87.91,7.24235053]
[1771087446261,11.37229481,87.933,87.91,7.24235053]
[1771087446677,1.30385538,87.934,87.891,39.82205231]
[1771087446678,1.30385538,87.947,87.92,7.24235053]
[1771087446885,1.30385538,87.946,87.92,7.24235053]
[1771087447379,1.30385538,87.946,87.91,7.24235053]
[1771087447677,1.30385538,87.944,87.91,7.24235053]
[1771087448473,1.30385538,87.944,87.911,11.37514076]
[1771087448677,1.30385538,87.942,87.911,11.37514076]
[1771087449055,1.30385538,87.939,87.9,7.24235053]
[1771087449396,1.30385538,87.937,87.9,7.24235053]
[1771087449681,1.30385538,87.956,87.93,7.24235053]
[1771087450665,11.36945028,87.955,87.93,7.24235053]
[1771087452066,12.67330566,87.955,87.93,7.24235053]
[1771087452290,1.30385538,87.954,87.93,7.24235053]
[1771087452657,1.30385538,87.954,87.921,1.18688232]
[1771087452857,1.30385538,87.954,87.922,11.37371761]
[1771087453058,1.30385538,87.954,87.922,12.58695893]
[1771087453349,11.36885967,87.96,87.93,7.24235053]
[1771087453554,52.28472937,87.956,87.93,7.24235053]
[1771087454170,1.28472937,87.956,87.931,11.37255347]
[1771087454689,11.36841626,87.963,87.932,1.22597103]
[1771087454863,11.36841626,87.963,87.931,11.37255347]
[1771087454864,1.28472937,87.962,87.931,11.37255347]
[1771087455069,1.28472937,87.962,87.925,11.37320869]
[1771087455280,1.28472937,87.96,87.925,11.37320869]
[1771087456163,1.28472937,87.958,87.925,11.37320869]
[1771087456484,1.28472937,87.956,87.925,11.37320869]
[1771087457470,1.28472937,87.955,87.93,7.24235053]
[1771087457662,1.28472937,87.955,87.925,11.37320869]
[1771087457862,1.28472937,87.955,87.91,28.43797909]
[1771087458063,0.19124999,87.949,87.91,7.24235053]
[1771087458263,7.24235053,87.95,87.91,8.56405548]
[1771087458264,11.3716482,87.938,87.91,8.56405548]
[1771087458465,11.3716482,87.938,87.911,1.32170495]
[1771087458690,0.19729231,87.937,87.901,1.32170495]
[1771087458895,0.19729231,87.937,87.901,12.6981398]
[1771087459075,0.19729231,87.937,87.902,1.32170495]
[1771087459274,0.19729231,87.937,87.91,7.24235053]
[1771087460082,51.02,87.958,87.93,7.24235053]
[1771087460487,11.36919176,87.957,87.93,7.24235053]
[1771087461385,51.04,87.956,87.93,7.24235053]
[1771087461883,11.36777009,87.968,87.932,1.32170495]
[1771087462111,11.36777009,87.968,87.94,7.24235053]
[1771087462112,51.04,87.967,87.94,7.24235053]
[1771087462769,11.36802855,87.966,87.94,7.24235053]
[1771087463304,0.19936352,87.965,87.932,1.32170495]
[1771087463472,0.19936352,87.965,87.93,7.24235053]
[1771087463673,0.19936352,87.965,87.926,11.37315724]
[1771087463899,0.19936352,87.959,87.921,1.32170495]
[1771087464075,51.06,87.958,87.94,7.24235053]
[1771087464469,51.06,87.958,87.941,1.32170495]
[1771087464678,11.36802855,87.966,87.941,1.32170495]
[1771087464898,51.08,87.965,87.941,1.32170495]
[1771087465094,11.3654445,87.986,87.951,1.32170495]
[1771087465496,0.15727452,87.984,87.951,1.32170495]
[1771087465672,51.08,87.985,87.961,1.32170495]
[1771087465995,11.3654445,87.986,87.961,1.32170495]
[1771087466193,11.5,88.0,87.97,8.56405548]
[1771087466398,11.36409437,87.997,87.971,1.32170495]
[1771087466570,52.0801,87.993,87.971,1.32170495]
[1771087466776,52.0801,87.993,87.98,7.24235053]
[1771087466993,1.0001,87.993,87.981,1.32170495]
[1771087467593,1.0001,87.993,87.937,4.61729252]
[1771087467594,1.11624683,87.993,87.961,1.32170495]
[1771087467796,11.36466951,87.992,87.961,12.6903797]
[1771087468090,11.36466951,87.992,87.962,1.32170495]
[1771087468391,1.11624683,87.993,87.971,1.32170495]
[1771087468392,51.08,87.991,87.971,1.32170495]
[1771087468592,52.0801,87.993,87.971,1.32170495]
[1771087468797,11.5,88.0,87.983,1.32170495]
[1771087469387,5.9761709,88.0,87.991,1.3117338]
[1771087469584,3.37294935,88.0,87.991,1.3117338]
[1771087469783,3.37294935,88.0,87.99,7.24235053]
[1771087469988,1.35968464,88.018,87.99,7.24235053]
[1771087470182,1.35968464,88.018,87.982,39.78086425]
[1771087470388,1.35968464,88.018,87.99,7.24235053]
[1771087470894,12.7200023,88.026,87.991,11.36479867]
[1771087471095,1.35968464,88.025,87.991,11.36479867]
[1771087472216,1.35968464,88.024,87.991,11.36479867]
[1771087472383,1.35968464,88.019,87.991,11.36479867]
[1771087473295,1.35968464,88.019,87.981,39.78131641]
[1771087474386,12.72004516,88.026,87.99,7.24235053]
[1771087474783,1.35968464,88.019,87.981,39.78131641]
[1771087477300,1.35968464,88.017,87.981,39.78131641]
[1771087477804,1.35968464,88.009,87.981,11.3660904]
[1771087478909,1.35968464,88.009,87.971,11.36738243]
[1771087479203,1.35968464,88.009,87.975,46.84]
[1771087479402,1.35968464,87.999,87.975,58.20678702]
[1771087479586,0.97,114.79,87.98,7.24235053]
[1771087479587,1.35968464,88.018,87.98,7.24235053]
[1771087479789,1.35968464,88.026,87.99,7.24235053]
[1771087480595,1.35968464,88.009,87.975,58.20678702]
[1771087480895,1.35968464,88.009,87.975,11.36678702]
[1771087481304,7.24235053,88.01,87.975,39.78395098]
[1771087481499,1.35968464,88.018,87.975,39.78395098]
[1771087481804,1.35968464,88.016,87.98,7.24235053]
[1771087482008,11.36029343,88.026,87.99,7.24235053]
[1771087483095,1.35968464,88.029,87.991,11.36479867]
[1771087483296,8.60203517,88.02,87.991,11.36479867]
[1771087483493,1.35968464,88.019,87.991,11.36479867]
[1771087484207,1.35968464,88.012,87.991,11.36479867]
[1771087484414,1.35968464,88.009,87.982,39.64]
[1771087484593,1.35968464,87.999,87.971,4.61729252]
[1771087484794,7.24235053,88.0,87.971,4.61729252]
[1771087485213,1.35968464,88.015,87.975,4.61729252]
[1771087486113,1.35968464,88.013,87.975,4.61729252]
[1771087486997,1.35968464,88.019,87.975,4.61729252]
[1771087487198,1.35968464,88.016,87.976,39.78357733]
[1771087488195,1.35968464,88.009,87.976,11.36673638]
[1771087488395,11.36144153,88.017,87.976,11.36673638]
[1771087488396,1.35968464,87.999,87.976,11.36673638]
[1771087488592,1.35968464,87.989,87.943,39.79850584]
[1771087488897,1.35968464,87.979,87.943,39.79850584]
[1771087489297,1.35968464,87.979,87.95,7.24235053]
[1771087489524,1.35968464,87.988,87.953,4.61729252]
[1771087489694,1.35968464,87.996,87.96,7.24235053]
[1771087490204,1.35968464,87.996,87.97,7.24235053]
[1771087490613,1.35968464,87.996,87.96,7.24235053]
[1771087491011,1.35968464,87.996,87.953,4.61729252]
[1771087491214,1.35968464,87.996,87.96,7.24235053]
[1771087491510,1.35968464,87.996,87.961,39.79036163]
[1771087491715,1.35968464,87.989,87.961,11.36867475]
[1771087492316,1.35968464,87.989,87.951,11.36996736]
[1771087492622,1.35968464,87.989,87.954,4.61729252]
[1771087493017,1.35968464,87.979,87.951,11.36996736]
[1771087493326,1.35968464,87.979,87.946,11.37052096]
[1771087493695,1.35968464,87.977,87.946,11.37052096]
[1771087497423,1.35968464,87.969,87.946,11.37052096]
[1771087498212,1.35968464,87.959,87.946,11.37052096]
[1771087498907,1.35968464,87.959,87.943,11.37100167]
[1771087499304,1.35968464,87.959,87.936,11.37179025]
[1771087499633,1.35968464,87.959,87.941,11.37125736]
[1771087500224,1.35968464,87.959,87.942,30.38122892]
[1771087500432,7.24235053,87.95,87.91,1.11802529]
[1771087500725,7.24235053,87.94,87.91,1.11802529]
[1771087500931,7.25010096,87.93,87.91,1.11802529]
[1771087501228,7.25010096,87.93,87.901,39.81752198]
[1771087501229,7.25010096,87.93,87.902,1.11802529]
[1771087502224,7.25010096,87.93,87.903,11.37617601]
[1771087502520,7.25010096,87.93,87.904,1.11802529]
[1771087503326,7.25010096,87.91,87.882,1.11802529]
[1771087503532,7.25010096,87.9,87.882,1.11802529]
[1771087503832,7.25010096,87.9,87.877,11.37944207]
[1771087504125,7.25010096,87.9,87.873,1.11802529]
[1771087505220,11.37798814,87.889,87.88,1e-08]
[1771087506215,11.37798814,87.889,87.857,1.11802529]
[1771087506412,11.37604659,87.904,87.861,1.11802529]
[1771087506613,7.25010096,87.93,87.891,1.11802529]
[1771087506935,28.42890886,87.939,87.901,1.11802529]
[1771087507229,39.80042775,87.939,87.901,1.11802529]
[1771087507435,7.27404697,87.93,87.885,1.11802529]
[1771087508615,7.27404697,87.93,87.875,47.04]
[1771087508616,7.25010096,87.91,87.875,48.15802529]
[1771087508936,7.25010096,87.91,87.876,1.11802529]
[1771087509715,11.37539956,87.909,87.881,1.11802529]
[1771087510121,11.37410571,87.919,87.881,1.11802529]
[1771087510627,39.80936998,87.919,87.881,1.11802529]
[1771087510811,7.25010096,87.91,87.881,1.11802529]
[1771087512013,11.37539956,87.909,87.881,1.11802529]
[1771087512628,39.81389846,87.909,87.881,1.11802529]
[1771087513123,39.81389846,87.909,87.852,28.45686779]
[1771087513124,1.17346681,87.897,87.86,7.25010096]
[1771087513532,1.17346681,87.908,87.87,7.25010096]
[1771087514014,11.37565836,87.907,87.87,18.63048987]
[1771087514216,11.37565836,87.907,87.853,39.83927697]
[1771087514529,1.17346681,87.899,87.86,7.25010096]
[1771087515236,11.37565836,87.907,87.871,1.21843154]
[1771087516231,11.37565836,87.907,87.872,1.21843154]
[1771087517422,11.37462321,87.915,87.881,1.21843154]
[1771087517943,11.37407347,87.92,87.891,1.21843154]
[1771087518241,1.17346681,87.919,87.881,1.21843154]
[1771087519152,11.37330352,87.926,87.891,1.21843154]
[1771087519521,11.37330352,87.926,87.893,1.21843154]
[1771087519722,1.17346681,87.919,87.881,1.21843154]
[1771087520020,1.17346681,87.919,87.882,12.59725025]
[1771087520219,1.17346681,87.909,87.883,1.21843154]
[1771087520441,1.17346681,87.909,87.877,11.37952805]
[1771087520830,1.17346681,87.909,87.878,1.21843154]
[1771087521017,7.25010096,87.92,87.881,1.21843154]
[1771087521219,11.37330352,87.926,87.881,1.21843154]
[1771087521418,11.37330352,87.926,87.88,7.25010096]
[1771087521419,1.17346681,87.925,87.891,1.21843154]
[1771087521644,1.17346681,87.919,87.882,1.21843154]
[1771087521829,1.17346681,87.909,87.874,1.21843154]
[1771087522929,11.37345889,87.924,87.901,1.21843154]
[1771087523443,11.37151889,87.939,87.911,1.21843154]
[1771087523644,11.37087237,87.944,87.911,1.21843154]
[1771087525443,11.37087237,87.944,87.875,4.61729252]
[1771087525444,11.37033622,87.949,87.921,1.21843154]
[1771087526769,1.17346681,87.939,87.901,1.21843154]
[1771087527052,1.17346681,87.929,87.892,1.21843154]
[1771087527254,7.25010096,87.92,87.892,1.21843154]
[1771087527458,50.64,87.919,87.883,1.21843154]
[1771087527752,1.17346681,87.918,87.883,1.21843154]
[1771087528630,50.62,87.924,87.891,1.21843154]
[1771087528834,39.80755888,87.923,87.891,1.21843154]
[1771087529138,1.17346681,87.919,87.891,1.21843154]
[1771087529460,1.17346681,87.919,87.881,1.21843154]
[1771087530654,1.17346681,87.919,87.866,46.8]
[1771087530655,1.17346681,87.899,87.861,1.21843154]
[1771087530832,1.17346681,87.899,87.864,1.21843154]
[1771087532949,1.17346681,87.889,87.852,1.21843154]
[1771087533140,1.17346681,87.889,87.844,12.60216548]
[1771087533348,1.17346681,87.889,87.852,1.21843154]
[1771087535151,11.3781176,87.888,87.852,1.21843154]
[1771087535353,11.3781176,87.888,87.861,1.21843154]
[1771087537965,11.3781176,87.888,87.86,7.25010096]
[1771087537966,28.43881844,87.909,87.87,7.25010096]
[1771087538144,1.17346681,87.918,87.881,1.21843154]
[1771087538338,11.37410571,87.919,87.862,11.3814846]
[1771087538339,1.17346681,87.909,87.87,7.25010096]
[1771087538535,1.17346681,87.909,87.871,1.21843154]
[1771087539558,1.17346681,87.907,87.871,1.21843154]
[1771087541265,1.69200774,87.899,87.871,1.21843154]
[1771087541560,1.69200774,87.899,87.863,1.74187752]
[1771087541768,1.69200774,87.897,87.863,1.74187752]
[1771087544139,11.377082,87.896,87.863,1.74187752]
[1771087544753,1.73492215,87.895,87.863,1.74187752]
[1771087546070,1.73492215,87.893,87.863,1.74187752]
[1771087546573,1.73492215,87.889,87.855,1.62446266]
[1771087547362,39.82069309,87.894,87.861,1.62446266]
[1771087549745,39.82069309,87.894,87.863,1.62446266]
[1771087550371,11.37734088,87.894,87.863,1.62446266]